fUST/lending_fUST_20250201
["ID","MTS","AMOUNT","RATE_DAILY","PERIOD"]
[351153538,1738362632615,-500.0,0.00019999,2]
[351153541,1738362632625,-500.0,0.00019999,2]
[351153543,1738362632636,-500.0,0.00019999,2]
[351153545,1738362632646,-500.0,0.00019999,2]
[351153547,1738362632656,-500.0,0.00019999,2]
[351153549,1738362632666,-262.39162937,0.00019999,2]
[351153628,1738362638122,-237.60837063,0.00019999,2]
[351153629,1738362638132,-500.0,0.00019999,2]
[351153630,1738362638143,-500.0,0.00019999,2]
[351153631,1738362638152,-500.0,0.00019999,2]
[351153632,1738362638162,-500.0,0.00019999,2]
[351153633,1738362638173,-500.0,0.00019999,2]
[351153634,1738362638182,-500.0,0.00019999,2]
[351153635,1738362638192,-500.0,0.00019999,2]
[351153636,1738362638203,-500.0,0.00019999,2]
[351153637,1738362638213,-500.0,0.00019999,2]
[351153638,1738362638223,-500.0,0.00019999,2]
[351153639,1738362638232,-500.0,0.00019999,2]
[351153640,1738362638242,-500.0,0.00019999,2]
[351153641,1738362638251,-500.0,0.00019999,2]
[351153642,1738362638261,-500.0,0.00019999,2]
[351153643,1738362638270,-500.0,0.00019999,2]
[351153644,1738362638280,-685.47,0.0002,2]
[351153645,1738362638289,-53273.0,0.0002,2]
[351153646,1738362638300,-160.0,0.0002,2]
[351153647,1738362638310,-500.0,0.00020005,2]
[351153648,1738362638319,-500.0,0.00020005,2]
[351153649,1738362638329,-500.0,0.00020069,2]
[351153650,1738362638338,-500.0,0.00020135,2]
[351153651,1738362638348,-500.0,0.00020135,2]
[351153652,1738362638357,-500.0,0.00020135,2]
[351153653,1738362638367,-500.0,0.00020135,2]
[351153654,1738362638377,-500.0,0.00020135,2]
[351153655,1738362638387,-500.0,0.00020135,2]
[351153656,1738362638397,-553.64212849,0.00020135,2]
[351153657,1738362638406,-500.0,0.00020135,2]
[351153658,1738362638415,-500.0,0.00020135,2]
[351153659,1738362638425,-500.0,0.00020135,2]
[351153660,1738362638434,-568.29302113,0.00020135,2]
[351153661,1738362638444,-500.0,0.00020135,2]
[351153662,1738362638453,-500.0,0.00020135,2]
[351153663,1738362638462,-500.0,0.00020135,2]
[351153664,1738362638471,-369.93425814,0.00020135,2]
[351153665,1738362638481,-500.0,0.00020135,2]
[351153666,1738362638491,-500.0,0.00020135,2]
[351153667,1738362638500,-500.0,0.00020135,2]
[351153668,1738362638511,-500.0,0.00020135,2]
[351153669,1738362638526,-500.0,0.00020135,2]
[351153670,1738362638535,-500.0,0.00020135,2]
[351153671,1738362638546,-500.69885235,0.00020135,2]
[351153672,1738362638556,-500.0,0.00020135,2]
[351153673,1738362638565,-500.0,0.00020135,2]
[351153674,1738362638574,-500.0,0.00020135,2]
[351153675,1738362638584,-500.0,0.00020135,2]
[351153676,1738362638593,-500.0,0.00020135,2]
[351153677,1738362638602,-500.0,0.00020135,2]
[351153678,1738362638611,-500.0,0.00020135,2]
[351153679,1738362638622,-500.0,0.00020135,2]
[351153680,1738362638633,-500.0,0.00020135,2]
[351153681,1738362638643,-255.34,0.00020135,2]
[351153682,1738362638653,-500.0,0.00020135,2]
[351153683,1738362638662,-500.0,0.00020136,2]
[351153684,1738362638671,-500.0,0.00020136,2]
[351153685,1738362638680,-500.0,0.00020136,2]
[351153686,1738362638690,-500.0,0.00020136,2]
[351153687,1738362638699,-500.0,0.00020136,2]
[351153688,1738362638708,-500.0,0.00020136,2]
[351153689,1738362638718,-500.0,0.00020136,2]
[351153690,1738362638727,-500.0,0.00020136,2]
[351153691,1738362638736,-500.0,0.00020136,2]
[351153692,1738362638745,-500.0,0.00020136,2]
[351153693,1738362638754,-500.0,0.00020136,2]
[351153694,1738362638763,-255.36,0.00020136,2]
[351153695,1738362638773,-500.0,0.00020136,2]
[351153696,1738362638782,-500.0,0.00020142,2]
[351153697,1738362638792,-500.0,0.00020142,2]
[351153698,1738362638801,-500.0,0.00020169,2]
[351153699,1738362638810,-999.9999991,0.00020188,2]
[351153700,1738362638819,-500.0,0.00020269,2]
[351153701,1738362638829,-419.08633192,0.00020271,2]
[351153702,1738362638839,-500.0,0.00020271,2]
[351153703,1738362638848,-500.0,0.00020271,2]
[351153704,1738362638858,-500.0,0.00020271,2]
[351153705,1738362638870,-156.1729452,0.00020271,2]
[351153706,1738362638879,-500.0,0.00020271,2]
[351153707,1738362638888,-500.0,0.00020271,2]
[351153708,1738362638899,-500.0,0.00020271,2]
[351153709,1738362638909,-500.0,0.00020271,2]
[351153710,1738362638919,-500.0,0.00020271,2]
[351153711,1738362638929,-500.0,0.00020271,2]
[351153712,1738362638940,-550.03797684,0.00020271,2]
[351153713,1738362638949,-614.89178505,0.00020271,2]
[351153714,1738362638959,-500.0,0.00020271,2]
[351153715,1738362638969,-500.0,0.00020271,2]
[351153716,1738362638978,-500.0,0.00020271,2]
[351153717,1738362638988,-233.2955713,0.00020271,2]
[351153718,1738362638999,-500.0,0.00020271,2]
[351153719,1738362639010,-500.0,0.00020271,2]
[351153720,1738362639019,-500.0,0.00020271,2]
[351153721,1738362639028,-500.0,0.00020271,2]
[351153722,1738362639039,-500.0,0.00020271,2]
[351153723,1738362639048,-500.0,0.00020271,2]
[351153724,1738362639058,-500.0,0.00020271,2]
[351153725,1738362639068,-500.0,0.00020271,2]
[351153726,1738362639078,-500.0,0.00020271,2]
[351153727,1738362639088,-500.0,0.00020272,2]
[351153728,1738362639098,-500.0,0.00020272,2]
[351153729,1738362639107,-500.0,0.00020272,2]
[351153730,1738362639119,-500.0,0.00020272,2]
[351153731,1738362639129,-500.0,0.00020272,2]
[351153732,1738362639138,-417.16388204,0.00020272,2]
[351153766,1738362643161,-500.0,0.00019999,2]
[351153767,1738362643170,-500.0,0.00020136,2]
[351153768,1738362643180,-82.83611796,0.00020272,2]
[351153769,1738362643189,-500.0,0.00020272,2]
[351153770,1738362643198,-152.76,0.00020272,2]
[351153771,1738362643207,-500.0,0.00020272,2]
[351153772,1738362643216,-500.0,0.00020273,2]
[351153773,1738362643225,-500.0,0.00020273,2]
[351153774,1738362643234,-500.0,0.00020273,2]
[351153775,1738362643244,-19.62388204,0.00020273,2]
[351153787,1738362661675,167.169504,0.00013973,2]
[351153788,1738362955448,165.414802,0.00013699,2]
[351153791,1738363587908,175.116184,0.00013973,2]
[351153793,1738363770215,-500.0,0.0001821,2]
[351153794,1738363770237,-334.6794241,0.00018546,2]
[351153795,1738363770259,-2153.19213138,0.0001861,2]
[351153825,1738363832503,-136.94681862,0.0001861,2]
[351153826,1738363832513,-178.68201322,0.000189,2]
[351153827,1738363832524,-717.05252979,0.00018995,2]
[351153828,1738363832534,-162.518657,0.00019178,2]
[351153829,1738363832544,-500.0,0.00019306,2]
[351153830,1738363832553,-153.41013803,0.00019534,2]
[351153831,1738363832563,-153.41013803,0.00019753,2]
[351153832,1738363832573,-169.62999665,0.00019766,2]
[351153833,1738363832582,-179.04774178,0.00019768,2]
[351153834,1738363832591,-500.0,0.00019865,2]
[351153835,1738363832601,-1292.39,0.00019865,2]
[351153836,1738363832612,-300.0,0.00019865,2]
[351153837,1738363832622,-500.0,0.00019865,2]
[351153838,1738363832631,-174.605,0.00019866,2]
[351153839,1738363832641,-15.96986276,0.00019866,2]
[351153854,1738363838165,-500.0,0.00019865,2]
[351153855,1738363838176,-140.3075382,0.00019866,2]
[351153856,1738363838186,-500.0,0.00019866,2]
[351153857,1738363838199,-500.0,0.00019866,2]
[351153858,1738363838210,-500.0,0.00019866,2]
[351153859,1738363838222,-500.0,0.00019866,2]
[351153860,1738363838235,-500.0,0.00019866,2]
[351153861,1738363838247,-500.0,0.00019866,2]
[351153862,1738363838261,-500.0,0.00019866,2]
[351153863,1738363838274,-500.0,0.00019866,2]
[351153864,1738363838287,-500.0,0.00019866,2]
[351153865,1738363838300,-500.0,0.00019866,2]
[351153866,1738363838313,-500.0,0.00019866,2]
[351153867,1738363838326,-500.0,0.00019866,2]
[351153868,1738363838338,-500.0,0.00019866,2]
[351153869,1738363838351,-500.0,0.00019866,2]
[351153870,1738363838361,-500.0,0.00019866,2]
[351153871,1738363838372,-500.0,0.00019866,2]
[351153872,1738363838385,-500.0,0.00019866,2]
[351153873,1738363838399,-500.0,0.00019866,2]
[351153874,1738363838415,-896.28,0.00019866,2]
[351153875,1738363838428,-500.0,0.00019866,2]
[351153876,1738363838439,-500.0,0.00019866,2]
[351153877,1738363838450,-500.0,0.00019866,2]
[351153878,1738363838461,-500.0,0.00019866,2]
[351153879,1738363838475,-500.0,0.00019866,2]
[351153880,1738363838488,-508.13270219,0.00019866,2]
[351153881,1738363838501,-500.0,0.00019866,2]
[351153882,1738363838514,-500.0,0.00019866,2]
[351153883,1738363838526,-500.0,0.00019866,2]
[351153884,1738363838537,-500.0,0.00019866,2]
[351153885,1738363838549,-500.0,0.00019866,2]
[351153886,1738363838559,-500.0,0.00019866,2]
[351153887,1738363838572,-493.69063922,0.00019866,2]
[351153888,1738363838584,-500.0,0.00019866,2]
[351153889,1738363838594,-1453.74,0.00019866,2]
[351153890,1738363838605,-505.34602776,0.00019866,2]
[351153891,1738363838616,-508.8593664,0.00019866,2]
[351153892,1738363838628,-500.0,0.00019866,2]
[351153893,1738363838640,-500.0,0.00019866,2]
[351153894,1738363838651,-500.0,0.00019866,2]
[351153895,1738363838662,-500.0,0.00019866,2]
[351153896,1738363838673,-500.0,0.00019866,2]
[351153897,1738363838684,-500.0,0.00019866,2]
[351153898,1738363838695,-500.0,0.00019866,2]
[351153899,1738363838706,-500.0,0.00019866,2]
[351153900,1738363838719,-500.0,0.00019866,2]
[351153901,1738363838731,-500.0,0.00019866,2]
[351153902,1738363838741,-500.0,0.00019866,2]
[351153903,1738363838752,-500.0,0.00019866,2]
[351153904,1738363838765,-500.0,0.00019866,2]
[351153905,1738363838776,-500.0,0.00019866,2]
[351153906,1738363838787,-504.18034126,0.00019866,2]
[351153907,1738363838799,-601.38,0.00019866,2]
[351153908,1738363838811,-500.0,0.00019866,2]
[351153909,1738363838822,-500.0,0.00019866,2]
[351153910,1738363838837,-500.0,0.00019866,2]
[351153911,1738363838848,-500.0,0.00019866,2]
[351153912,1738363838859,-500.0,0.00019866,2]
[351153913,1738363838870,-500.0,0.00019866,2]
[351153914,1738363838883,-500.0,0.00019866,2]
[351153915,1738363838896,-500.0,0.00019866,2]
[351153916,1738363838907,-500.0,0.00019866,2]
[351153917,1738363838918,-499.62033568,0.00019866,2]
[351153918,1738363838934,-500.0,0.00019866,2]
[351153919,1738363838945,-500.0,0.00019866,2]
[351153920,1738363838955,-1097.53,0.00019866,2]
[351153921,1738363838966,-500.0,0.00019866,2]
[351153922,1738363838978,-500.0,0.00019866,2]
[351153923,1738363838989,-255.87414393,0.00019866,2]
[351153924,1738363838999,-500.0,0.00019866,2]
[351153925,1738363839010,-1867.55,0.00019866,2]
[351153926,1738363839021,-500.0,0.00019866,2]
[351153927,1738363839033,-500.0,0.00019866,2]
[351153928,1738363839044,-500.0,0.00019866,2]
[351153929,1738363839055,-500.0,0.00019866,2]
[351153930,1738363839066,-500.0,0.00019866,2]
[351153931,1738363839078,-500.0,0.00019866,2]
[351153932,1738363839088,-500.0,0.00019866,2]
[351153933,1738363839099,-190.35553604,0.00019866,2]
[351153934,1738363839109,-500.0,0.00019866,2]
[351153935,1738363839120,-500.0,0.00019866,2]
[351153936,1738363839129,-500.0,0.00019866,2]
[351153937,1738363839139,-500.0,0.00019866,2]
[351153938,1738363839149,-500.0,0.00019866,2]
[351153939,1738363839304,-500.0,0.00019866,2]
[351153940,1738363839322,-500.0,0.00019866,2]
[351153941,1738363839331,-341.02660232,0.00019866,2]
[351153942,1738363839343,-500.0,0.00019866,2]
[351153943,1738363839352,-500.0,0.00019866,2]
[351153944,1738363839361,-963.87,0.00019866,2]
[351153945,1738363839370,-500.0,0.00019866,2]
[351153946,1738363839379,-500.0,0.00019866,2]
[351153947,1738363839390,-500.0,0.00019866,2]
[351153948,1738363839399,-500.0,0.00019866,2]
[351153949,1738363839408,-500.0,0.00019866,2]
[351153950,1738363839417,-500.0,0.00019866,2]
[351153951,1738363839428,-500.0,0.00019866,2]
[351153952,1738363839437,-522.43504274,0.00019866,2]
[351153953,1738363839446,-500.0,0.00019866,2]
[351153954,1738363839455,-500.0,0.00019866,2]
[351153955,1738363839464,-500.0,0.00019866,2]
[351153956,1738363839473,-2166.43,0.00019866,2]
[351153957,1738363839483,-500.0,0.00019866,2]
[351153958,1738363839493,-500.0,0.00019866,2]
[351153959,1738363839502,-500.0,0.00019866,2]
[351153960,1738363839512,-534.08,0.00019866,2]
[351153961,1738363839521,-500.0,0.00019866,2]
[351153962,1738363839530,-1413.9,0.00019866,2]
[351153963,1738363839539,-500.0,0.00019866,2]
[351153964,1738363839548,-155.51,0.00019866,2]
[351153965,1738363839557,-500.0,0.00019867,2]
[351153966,1738363839567,-500.0,0.00019867,2]
[351153967,1738363839576,-500.0,0.00019867,2]
[351153968,1738363839585,-500.0,0.00019867,2]
[351153969,1738363839594,-500.0,0.00019867,2]
[351153970,1738363839604,-500.0,0.00019867,2]
[351153971,1738363839613,-500.0,0.00019867,2]
[351153972,1738363839622,-500.0,0.00019867,2]
[351153973,1738363839632,-500.0,0.00019867,2]
[351153974,1738363839642,-500.0,0.00019867,2]
[351153975,1738363839651,-500.0,0.00019867,2]
[351153976,1738363839660,-500.0,0.00019867,7]
[351153977,1738363839670,-500.0,0.00019867,2]
[351153979,1738363839679,-500.0,0.00019867,2]
[351153980,1738363839689,-500.0,0.00019867,2]
[351153981,1738363839699,-500.0,0.00019867,2]
[351153982,1738363839708,-500.0,0.00019867,2]
[351153983,1738363839717,-503.6355638,0.00019867,2]
[351153984,1738363839726,-500.0,0.00019867,2]
[351153985,1738363839735,-500.0,0.00019867,2]
[351153986,1738363839744,-500.0,0.00019867,2]
[351153987,1738363839754,-163.38203873,0.00019867,2]
[351153988,1738363839762,-500.0,0.00019867,2]
[351153989,1738363839771,-500.0,0.00019867,2]
[351153990,1738363839781,-500.0,0.00019867,2]
[351153991,1738363839790,-500.0,0.00019867,2]
[351153992,1738363839799,-500.0,0.00019867,2]
[351153993,1738363839809,-500.0,0.00019867,2]
[351153994,1738363839818,-500.0,0.00019867,2]
[351153995,1738363839827,-500.0,0.00019867,2]
[351153996,1738363839836,-500.0,0.00019867,2]
[351153997,1738363839845,-500.0,0.00019867,2]
[351153998,1738363839854,-373.6661641,0.00019867,2]
[351153999,1738363839863,-500.0,0.00019867,2]
[351154000,1738363839873,-500.0,0.00019867,2]
[351154001,1738363839882,-500.0,0.00019867,2]
[351154002,1738363839891,-500.0,0.00019867,2]
[351154003,1738363839900,-502.28121184,0.00019867,2]
[351154004,1738363839910,-576.86,0.00019867,2]
[351154005,1738363839919,-220.48572972,0.00019867,2]
[351154006,1738363839929,-500.0,0.00019867,2]
[351154007,1738363839938,-509.92240766,0.00019867,2]
[351154008,1738363839947,-500.0,0.00019867,2]
[351154009,1738363839956,-500.0,0.00019867,2]
[351154010,1738363839966,-500.0,0.00019867,2]
[351154012,1738363839975,-5094.75,0.00019867,2]
[351154014,1738363839984,-500.0,0.00019867,2]
[351154016,1738363839993,-500.0,0.00019867,2]
[351154018,1738363840002,-500.0,0.00019867,2]
[351154020,1738363840012,-500.0,0.00019867,2]
[351154022,1738363840021,-500.0,0.00019867,2]
[351154024,1738363840030,-151.0,0.00019867,2]
[351154026,1738363840039,-500.0,0.00019867,2]
[351154027,1738363840049,-403.747876,0.00019867,2]
[351154028,1738363840058,-403.747876,0.00019867,2]
[351154029,1738363840068,-242.61135821,0.00019868,2]
[351154030,1738363840077,-500.0,0.00019868,2]
[351154031,1738363840087,-500.0,0.00019868,2]
[351154032,1738363840096,-500.0,0.00019868,2]
[351154033,1738363840105,-500.0,0.00019868,2]
[351154034,1738363840115,-500.0,0.00019868,2]
[351154035,1738363840124,-500.0,0.00019868,2]
[351154036,1738363840134,-500.0,0.00019868,2]
[351154037,1738363840143,-500.99222924,0.00019868,2]
[351154038,1738363840153,-500.0,0.00019868,2]
[351154039,1738363840162,-500.0,0.00019868,2]
[351154040,1738363840172,-500.0,0.00019868,2]
[351154041,1738363840181,-635.46883668,0.00019868,2]
[351154042,1738363840191,-406.14362685,0.00019868,2]
[351154043,1738363840201,-500.0,0.00019868,2]
[351154044,1738363840211,-479.32647364,0.00019868,2]
[351154045,1738363840220,-500.0,0.00019868,2]
[351154046,1738363840229,-500.0,0.00019868,2]
[351154047,1738363840238,-500.0,0.00019868,2]
[351154048,1738363840248,-500.0,0.00019868,2]
[351154049,1738363840257,-504.09004463,0.00019868,2]
[351154050,1738363840267,-500.0,0.00019868,2]
[351154051,1738363840276,-500.0,0.00019868,2]
[351154052,1738363840286,-500.0,0.00019868,2]
[351154053,1738363840296,-500.0,0.00019868,2]
[351154054,1738363840305,-151.0,0.00019868,2]
[351154056,1738363840314,-500.0,0.00019868,2]
[351154058,1738363840323,-151.0,0.00019868,2]
[351154059,1738363840332,-500.0,0.00019868,2]
[351154061,1738363840342,-151.0,0.00019868,2]
[351154063,1738363840354,-151.0,0.00019868,2]
[351154064,1738363840363,-103.79028716,0.00019868,2]
[351154065,1738363840379,-380.26151072,0.00019868,2]
[351154066,1738363840432,-500.0,0.00019866,2]
[351154067,1738363840441,-15.94820212,0.00019868,2]
[351154068,1738363840450,-500.0,0.00019868,2]
[351154069,1738363840461,-500.0,0.00019868,2]
[351154070,1738363840470,-175.471857,0.00019868,2]
[351154071,1738363840479,-175.471857,0.00019868,2]
[351154072,1738363840488,-151.0,0.000199,2]
[351154073,1738363840499,-404.88558518,0.000199,2]
[351154074,1738363840509,-477.60262649,0.00019945,2]
[351154075,1738363840519,-153.41013803,0.00019945,2]
[351154076,1738363840528,-153.647,0.0001995,2]
[351154077,1738363840539,-500.0,0.00019997,2]
[351154078,1738363840549,-172.22644187,0.00019997,2]
[351154079,1738363840558,-500.0,0.00019997,2]
[351154080,1738363840568,-500.0,0.00019997,2]
[351154081,1738363840577,-500.0,0.00019997,2]
[351154082,1738363840587,-359.56556154,0.00019997,2]
[351154083,1738363840597,-179.43242056,0.00019997,2]
[351154084,1738363840605,-151.0,0.00019997,2]
[351154085,1738363840615,-357.198687,0.00019997,2]
[351154086,1738363840625,-357.198687,0.00019997,2]
[351154087,1738363840634,-151.0,0.00019997,2]
[351154088,1738363840644,-151.0,0.00019997,2]
[351154089,1738363840653,-151.0,0.00019997,2]
[351154090,1738363840663,-500.0,0.00019997,2]
[351154091,1738363840673,-381.46321889,0.00019997,2]
[351154092,1738363840682,-208.88556411,0.00019997,2]
[351154093,1738363840692,-151.0,0.00019998,2]
[351154094,1738363840702,-151.0,0.00019998,2]
[351154095,1738363840711,-186.819859,0.00019998,2]
[351154096,1738363840720,-151.0,0.00019998,2]
[351154097,1738363840730,-151.0,0.00019998,2]
[351154098,1738363840739,-500.0,0.00019998,2]
[351154099,1738363840748,-151.0,0.00019998,2]
[351154100,1738363840758,-151.0,0.00019998,2]
[351154101,1738363840767,-151.0,0.00019998,2]
[351154102,1738363840776,-151.0,0.00019998,2]
[351154103,1738363840786,-151.0,0.00019998,2]
[351154104,1738363840795,-151.0,0.00019998,2]
[351154105,1738363840805,-328.753859,0.00019998,2]
[351154106,1738363840814,-328.753859,0.00019998,2]
[351154107,1738363840823,-397.898466,0.00019998,2]
[351154108,1738363840834,-397.898466,0.00019998,2]
[351154109,1738363840843,-151.0,0.00019998,2]
[351154110,1738363840852,-151.0,0.00019998,2]
[351154111,1738363840861,-151.0,0.00019998,2]
[351154112,1738363840870,-500.0,0.00019998,2]
[351154113,1738363840879,-221.548548,0.00019998,2]
[351154114,1738363840889,-971.37584843,0.00019998,2]
[351154115,1738363840945,-490.40668275,0.00019866,2]
[351154116,1738363840956,-9.59331725,0.00019866,2]
[351154117,1738363840966,-377.47415157,0.00019998,2]
[351154118,1738363840975,-151.0,0.00019998,2]
[351154119,1738363840985,-303.226736,0.00019998,2]
[351154120,1738363840994,-500.0,0.00019998,2]
[351154121,1738363841004,-303.226736,0.00019998,2]
[351154122,1738363841014,-233.110236,0.00019998,2]
[351154123,1738363841023,-500.0,0.00019998,2]
[351154124,1738363841033,-500.0,0.00019998,2]
[351154125,1738363841042,-500.0,0.00019998,2]
[351154126,1738363841051,-151.0,0.00019998,2]
[351154127,1738363841061,-357.198687,0.00019998,2]
[351154128,1738363841070,-357.198687,0.00019998,2]
[351154129,1738363841079,-500.0,0.00019998,2]
[351154130,1738363841089,-151.0,0.00019998,2]
[351154131,1738363841098,-151.0,0.00019998,2]
[351154132,1738363841108,-500.0,0.00019998,2]
[351154133,1738363841118,-500.0,0.00019998,2]
[351154134,1738363841127,-500.0,0.00019998,2]
[351154135,1738363841136,-787.03,0.00019998,2]
[351154136,1738363841145,-151.0,0.00019998,2]
[351154137,1738363841154,-151.0,0.00019998,2]
[351154138,1738363841164,-500.0,0.00019998,2]
[351154139,1738363841173,-151.0,0.00019998,2]
[351154140,1738363841183,-500.0,0.00019998,2]
[351154141,1738363841193,-151.0,0.00019998,2]
[351154142,1738363841203,-151.0,0.00019998,2]
[351154143,1738363841213,-500.0,0.00019998,2]
[351154144,1738363841223,-500.0,0.00019998,2]
[351154145,1738363841232,-175.471857,0.00019998,2]
[351154146,1738363841242,-175.471857,0.00019998,2]
[351154147,1738363841251,-403.747876,0.00019998,2]
[351154148,1738363841261,-499.0,0.00019998,2]
[351154149,1738363841271,-403.747876,0.00019998,2]
[351154150,1738363841280,-3504.03,0.00019998,2]
[351154151,1738363841290,-5557.48593152,0.00019998,5]
[351154152,1738363841303,-16988.07226827,0.00019998,5]
[351154153,1738363841313,-34177.42157977,0.00019998,5]
[351154154,1738363841326,-44959.67410476,0.00019998,5]
[351154155,1738363841339,-7181.72085543,0.00019998,5]
[351154186,1738363843374,-8952.3449615,0.00019998,5]
[351154187,1738363843386,-418.07142913,0.00019998,5]
[351154190,1738363846301,-302.8183302,0.00019769,2]
[351154191,1738363846311,-276.00909757,0.00019966,4]
[351154192,1738363846320,-9749.27157047,0.00019998,5]
[351154205,1738363862741,163.772895,0.00013699,2]
[351154207,1738364701305,174.512952,0.00013973,2]
[351154208,1738364826114,-2159.9800683,0.00016074,2]
[351154209,1738364826137,-150.0,0.000164,2]
[351154210,1738364826159,-500.0,0.0001821,2]
[351154211,1738364826180,-1840.4840141,0.00018638,2]
[351154212,1738364826200,-150.0,0.000189,2]
[351154213,1738364826222,-162.5186571,0.00019178,2]
[351154214,1738364826244,-300.0,0.00019207,2]
[351154215,1738364826265,-1264.6894299,0.00019208,2]
[351154216,1738364963097,-443.94,0.0001821,2]
[351154253,1738365032643,-56.06,0.0001821,2]
[351154254,1738365032652,-162.518657,0.00019178,2]
[351154255,1738365032662,-300.0,0.00019482,2]
[351154257,1738365032672,-212.18285228,0.00019553,2]
[351154259,1738365032684,-287.81714772,0.00019553,2]
[351154261,1738365032694,-500.0,0.00019553,2]
[351154263,1738365032706,-500.0,0.00019553,2]
[351154264,1738365032715,-1420.14,0.00019553,2]
[351154265,1738365032724,-500.0,0.00019553,2]
[351154267,1738365032734,-500.0,0.00019634,2]
[351154269,1738365032744,-638.5,0.00019639,7]
[351154271,1738365032753,-10042.70486373,0.00019667,2]
[351154273,1738365032762,-500.0,0.00019668,2]
[351154275,1738365032771,-452.95184451,0.00019668,2]
[351154277,1738365032781,-500.0,0.00019668,2]
[351154279,1738365032791,-985.99,0.00019668,2]
[351154280,1738365032802,-500.0,0.0001968,2]
[351154282,1738365032811,-500.0,0.0001968,2]
[351154283,1738365032821,-682.35,0.0001968,2]
[351154284,1738365032830,-500.0,0.0001968,2]
[351154286,1738365032840,-500.0,0.0001968,2]
[351154287,1738365032849,-500.0,0.0001968,2]
[351154288,1738365032858,-500.0,0.0001968,2]
[351154289,1738365032868,-500.0,0.0001969,2]
[351154290,1738365032878,-500.0,0.0001969,2]
[351154291,1738365032888,-500.0,0.0001969,2]
[351154292,1738365032897,-1420.14,0.0001969,2]
[351154293,1738365032907,-500.0,0.0001969,2]
[351154294,1738365032916,-500.0,0.00019734,2]
[351154295,1738365032925,-353.77275441,0.00019764,2]
[351154296,1738365032935,-177.68250393,0.00019765,2]
[351154297,1738365032945,-500.0,0.00019805,2]
[351154298,1738365032954,-985.99,0.00019805,2]
[351154299,1738365032963,-500.0,0.00019817,2]
[351154300,1738365032973,-500.0,0.00019817,2]
[351154301,1738365032983,-682.35,0.00019817,2]
[351154302,1738365032993,-500.0,0.00019817,2]
[351154303,1738365033003,-500.0,0.00019817,2]
[351154304,1738365033012,-500.0,0.00019817,2]
[351154305,1738365033022,-500.0,0.00019827,2]
[351154306,1738365033032,-1420.14,0.00019827,2]
[351154307,1738365033042,-500.0,0.00019827,2]
[351154308,1738365033054,-177.68250391,0.00019834,2]
[351154309,1738365033064,-500.0,0.00019834,2]
[351154310,1738365033074,-500.0,0.00019863,2]
[351154311,1738365033085,-172.967,0.00019864,2]
[351154312,1738365033095,-500.0,0.00019864,2]
[351154313,1738365033105,-500.0,0.00019864,2]
[351154314,1738365033115,-500.0,0.00019864,2]
[351154315,1738365033125,-500.0,0.00019864,2]
[351154316,1738365033134,-390.653636,0.00019864,2]
[351154317,1738365033144,-500.0,0.00019864,2]
[351154318,1738365033153,-500.0,0.00019864,2]